bitfinex/quotes_BTCUSD_20250616
["timestamp","ask_amount","ask_price","bid_price","bid_amount"]
[1750100137350,0.00504634,108200.0,108190.0,1.90378809]
[1750100137576,0.00504634,108200.0,108190.0,2.4230675]
[1750100140443,0.00106501,108200.0,108190.0,2.4230675]
[1750100140655,0.00106501,108200.0,108190.0,1.90378809]
[1750100140864,0.00106501,108200.0,108190.0,2.4230675]
[1750100144449,0.00106501,108200.0,108190.0,2.1984375]
[1750100144651,0.00106501,108200.0,108190.0,2.0007575]
[1750100144896,0.00106501,108200.0,108190.0,2.1983975]
[1750100146225,0.09198651,108210.0,108200.0,0.91220912]
[1750100146439,0.01184401,108260.0,108250.0,0.56767008]
[1750100146662,0.01184401,108260.0,108250.0,1.91371066]
[1750100146871,0.01193116,108260.0,108250.0,1.42217525]
[1750100147093,0.01193116,108260.0,108250.0,1.69350904]
[1750100147316,0.01193116,108260.0,108250.0,2.52626551]
[1750100147552,0.01193116,108260.0,108250.0,2.5074062]
[1750100147786,0.01193116,108260.0,108250.0,2.62794529]
[1750100148018,0.01193116,108260.0,108250.0,2.68294529]
[1750100148455,0.00101955,108270.0,108260.0,1.68719928]
[1750100148664,0.00101955,108270.0,108260.0,1.42016163]
[1750100148921,0.00101955,108270.0,108260.0,1.27327565]
[1750100149144,0.00101955,108270.0,108260.0,1.47111565]
[1750100149341,0.00101955,108270.0,108260.0,0.74900624]
[1750100149557,0.00101955,108270.0,108260.0,1.78536565]
[1750100149782,0.00101955,108270.0,108260.0,1.80635565]
[1750100150258,0.00101955,108270.0,108260.0,1.65039565]
[1750100150488,0.00101955,108270.0,108260.0,1.58748565]
[1750100150929,0.00101955,108270.0,108260.0,1.77008565]
[1750100151145,0.00101955,108270.0,108260.0,1.05300624]
[1750100151356,0.00101955,108270.0,108260.0,1.34890624]
[1750100151579,0.00101955,108270.0,108260.0,1.54666624]
[1750100151814,0.00101955,108270.0,108260.0,2.06794565]
[1750100152039,0.00093337,108270.0,108260.0,1.87018565]
[1750100152252,0.00093337,108270.0,108260.0,2.06790565]
[1750100153154,0.00093337,108270.0,108260.0,2.09910565]
[1750100155511,0.00093337,108270.0,108260.0,1.80520565]
[1750100156892,0.00093337,108270.0,108260.0,1.27042624]
[1750100158888,0.00093337,108270.0,108260.0,1.07270624]
[1750100159128,0.00093337,108270.0,108260.0,1.25428624]
[1750100160511,0.00093337,108270.0,108260.0,1.25408624]
[1750100162999,0.00093337,108270.0,108260.0,0.70789222]
[1750100163224,0.00557337,108270.0,108260.0,0.70489222]
[1750100163443,0.54968818,108270.0,108260.0,0.45345046]
[1750100163654,0.54045278,108270.0,108260.0,0.60861046]
[1750100164801,0.54045278,108270.0,108260.0,0.41165046]
[1750100165014,0.54045278,108270.0,108260.0,0.60861046]
[1750100165676,0.00093337,108270.0,108260.0,2.05601331]
[1750100166123,0.00093337,108270.0,108260.0,2.08375131]
[1750100166337,0.00093337,108270.0,108260.0,2.09829216]
[1750100166564,0.00093337,108270.0,108260.0,1.3675919]
[1750100166790,0.00093337,108270.0,108260.0,0.70509222]
[1750100166791,0.52485278,108270.0,108260.0,0.70509222]
[1750100167453,0.00557337,108270.0,108260.0,0.70509222]
[1750100168974,0.00557337,108270.0,108260.0,0.54969222]
[1750100169185,0.52485278,108270.0,108260.0,0.50789222]
[1750100169405,0.00557337,108270.0,108260.0,0.70505222]
[1750100169835,0.00557337,108270.0,108260.0,0.54969222]
[1750100170050,0.52485278,108270.0,108260.0,0.70501222]
[1750100170475,0.00557337,108270.0,108260.0,0.70501222]
[1750100170714,0.00557337,108270.0,108260.0,0.60877046]
[1750100172867,0.00093337,108270.0,108260.0,0.70501222]
[1750100173635,0.00557337,108270.0,108260.0,0.70501222]
[1750100175142,0.00557337,108270.0,108260.0,0.70473222]
[1750100176618,0.00557337,108270.0,108260.0,0.50789222]
[1750100176827,0.00557337,108270.0,108260.0,0.70473222]
[1750100178958,0.00557337,108270.0,108260.0,0.50789222]
[1750100179165,0.00557337,108270.0,108260.0,0.70461222]
[1750100180659,0.00557337,108270.0,108260.0,0.54969222]
[1750100180862,0.55745278,108270.0,108260.0,0.60825046]
[1750100181081,0.55692828,108270.0,108260.0,0.60825046]
[1750100181287,0.03764887,108270.0,108260.0,0.60825046]
[1750100181497,0.55692828,108270.0,108260.0,0.60825046]
[1750100181851,0.02164887,108270.0,108260.0,0.41165046]
[1750100182069,1.1016149,108270.0,108260.0,0.44421404]
[1750100182279,0.58233532,108270.0,108260.0,0.45345046]
[1750100182484,0.59157131,108270.0,108260.0,0.44421404]
[1750100182739,0.77629536,108270.0,108260.0,0.44421404]
[1750100182883,0.77629536,108270.0,108260.0,0.40241404]
[1750100182884,0.04458461,108270.0,108260.0,0.40241404]
[1750100183088,0.00040887,108270.0,108260.0,0.41165046]
[1750100183315,0.00504887,108270.0,108260.0,0.60813046]
[1750100183478,0.00504887,108270.0,108260.0,0.60413046]
[1750100183888,0.00704887,108270.0,108260.0,0.60413046]
[1750100187717,0.00704887,108270.0,108260.0,0.60613046]
[1750100188434,0.00704887,108270.0,108260.0,0.21445046]
[1750100189987,0.00704887,108270.0,108260.0,0.41005046]
[1750100190245,0.52632828,108270.0,108260.0,0.41009046]
[1750100191150,0.00704887,108270.0,108260.0,0.41009046]
[1750100192413,0.00240887,108270.0,108260.0,1.05771163]
[1750100196129,0.00240887,108270.0,108260.0,0.53843222]
[1750100196367,0.00240887,108270.0,108260.0,1.05771163]
[1750100197201,0.00140887,108270.0,108260.0,1.05771163]
[1750100197379,0.00140887,108270.0,108260.0,1.06247163]
[1750100197631,0.00040887,108270.0,108260.0,1.06347163]
[1750100197859,0.00040887,108270.0,108260.0,0.86783163]
[1750100198070,0.00040887,108270.0,108260.0,1.06323163]
[1750100199141,0.00040887,108270.0,108260.0,0.54395222]
[1750100199329,0.00040887,108270.0,108260.0,1.06323163]
[1750100201438,0.00040887,108270.0,108260.0,0.54395222]
[1750100201653,0.00040887,108270.0,108260.0,1.06323163]
[1750100202518,0.00040887,108270.0,108260.0,0.54395222]
[1750100203005,0.00040887,108270.0,108260.0,0.53919222]
[1750100203441,0.00040887,108270.0,108260.0,0.38499222]
[1750100203656,0.00040887,108270.0,108260.0,0.53911222]
[1750100204136,0.00496887,108270.0,108260.0,0.50701222]
[1750100204884,0.00496887,108270.0,108260.0,0.50693222]
[1750100205535,0.00040887,108270.0,108260.0,0.31169222]
[1750100205757,0.53924828,108270.0,108260.0,0.50689222]
[1750100206034,0.55574828,108270.0,108260.0,0.50689222]
[1750100206294,0.55574828,108270.0,108260.0,0.25565046]
[1750100206606,0.03646887,108270.0,108260.0,0.40965046]
[1750100206815,0.03846887,108270.0,108260.0,0.40965046]
[1750100207030,0.55774828,108270.0,108260.0,0.40965046]
[1750100207264,0.03846887,108270.0,108260.0,0.40965046]
[1750100207491,0.55774828,108270.0,108260.0,0.21445046]
[1750100207707,0.55774828,108270.0,108260.0,0.40957046]
[1750100207902,0.56698368,108270.0,108260.0,0.21445046]
[1750100208094,0.55774828,108270.0,108260.0,0.25565046]
[1750100208707,0.71166828,108270.0,108260.0,0.25565046]
[1750100209271,0.73013933,108270.0,108260.0,0.25565046]
[1750100210418,0.73013925,108270.0,108260.0,0.25565046]
[1750100210832,0.73937499,108270.0,108260.0,0.25565046]
[1750100211249,0.7393749,108270.0,108260.0,0.25565046]
[1750100211685,0.74861072,108270.0,108260.0,0.25565046]
[1750100211871,0.22009549,108270.0,108260.0,0.25565046]
[1750100212358,0.74861064,108270.0,108260.0,0.25565046]
[1750100213054,0.75784646,108270.0,108260.0,0.25565046]
[1750100213561,0.74861106,108270.0,108260.0,0.25565046]
[1750100214354,0.73925524,108270.0,108260.0,0.25565046]
[1750100214575,0.74849123,108270.0,108260.0,0.25565046]
[1750100214794,0.9332146,108270.0,108260.0,0.24641404]
[1750100215013,1.26777064,108270.0,108260.0,0.25565063]
[1750100215227,0.75772731,108270.0,108260.0,0.27412356]
[1750100215461,0.74849123,108270.0,108260.0,0.27412356]
[1750100215742,0.94245068,108270.0,108260.0,0.27412356]
[1750100215962,0.94245127,108270.0,108260.0,0.22368714]
[1750100216173,0.93321562,108270.0,108260.0,0.26488714]
[1750100216384,0.92397988,108270.0,108260.0,0.2556508]
[1750100216615,0.73002035,108270.0,108260.0,0.26488722]
[1750100216837,0.91474372,108270.0,108260.0,0.26488722]
[1750100217384,0.57621993,108270.0,108260.0,0.26488722]
[1750100217605,0.7484114,108270.0,108260.0,0.26488722]
[1750100218040,0.22913199,108270.0,108260.0,0.26488722]
[1750100218279,0.7484114,108270.0,108260.0,0.26488722]
[1750100218494,0.94237085,108270.0,108260.0,0.26488722]
[1750100218822,0.94237153,108270.0,108260.0,0.26488722]
[1750100219695,0.94237153,108270.0,108260.0,0.26488731]
[1750100219907,0.94237153,108270.0,108260.0,0.2144508]
[1750100220121,0.94237153,108270.0,108260.0,0.2551308]
[1750100220340,0.94237153,108270.0,108260.0,0.26436731]
[1750100220561,0.60392816,108270.0,108260.0,0.23292373]
[1750100220774,0.57621993,108270.0,108260.0,0.27360373]
[1750100220995,0.72973993,108270.0,108260.0,0.27360373]
[1750100222168,0.73897592,108270.0,108260.0,0.27360373]
[1750100222816,0.93293537,108270.0,108260.0,0.23292373]
[1750100223028,0.748212,108270.0,108260.0,0.27360373]
[1750100223424,0.93293537,108270.0,108260.0,0.27360373]
[1750100224784,0.93293537,108270.0,108260.0,0.26436731]
[1750100225252,0.748212,108270.0,108260.0,0.27360373]
[1750100226174,0.58545592,108270.0,108260.0,0.27360373]
[1750100226376,0.21953651,108270.0,108260.0,0.27360373]
[1750100226604,0.73881592,108270.0,108260.0,0.27360373]
[1750100227894,0.73881592,108270.0,108260.0,0.23292373]
[1750100228153,0.93277537,108270.0,108260.0,0.27360373]
[1750100228461,0.748052,108270.0,108260.0,0.27360373]
[1750100228617,0.93277537,108270.0,108260.0,0.27360373]
[1750100228839,0.748052,108270.0,108260.0,0.27360373]
[1750100230086,0.73881592,108270.0,108260.0,0.27360373]
[1750100230638,0.93277537,108270.0,108260.0,0.27360373]
[1750100230856,0.94201153,108270.0,108260.0,0.27360373]
[1750100231329,0.73881592,108270.0,108260.0,0.27360373]
[1750100231814,0.72231592,108270.0,108260.0,0.27360373]
[1750100232227,0.02544009,108270.0,108260.0,0.27360373]
[1750100232531,0.17848009,108270.0,108260.0,0.27360373]
[1750100232755,0.7162314,108270.0,108260.0,0.27360373]
[1750100233648,0.72546748,108270.0,108260.0,0.27360373]
[1750100233857,0.57242748,108270.0,108260.0,0.26436731]
[1750100234065,0.70699541,108270.0,108260.0,0.27360373]
[1750100234485,0.7162314,108270.0,108260.0,0.27360373]
[1750100234662,0.91019085,108270.0,108260.0,0.27360373]
[1750100235081,0.19695199,108270.0,108260.0,0.27360373]
[1750100235293,0.7162314,108270.0,108260.0,0.27360373]
[1750100235493,0.91019085,108270.0,108260.0,0.27360373]
[1750100235709,0.91019153,108270.0,108260.0,0.27360373]
[1750100235914,0.90095579,108270.0,108260.0,0.26436731]
[1750100236152,0.89171988,108270.0,108260.0,0.2551308]
[1750100238307,0.89171988,108270.0,108260.0,0.24589421]
[1750100238570,0.91388389,108270.0,108260.0,0.23665736]
[1750100238780,0.91388389,108270.0,108260.0,0.24589421]
[1750100238990,0.90464781,108270.0,108260.0,0.19597736]
[1750100239200,0.88884781,108270.0,108260.0,0.25513097]
[1750100239407,0.88884781,108270.0,108260.0,0.26436765]
[1750100239843,0.88884781,108270.0,108260.0,0.27360424]
[1750100240053,0.88884781,108270.0,108260.0,0.26436765]
[1750100240340,0.88884781,108270.0,108260.0,0.25513097]
[1750100241327,0.88884781,108270.0,108260.0,0.24589421]
[1750100241539,0.87961165,108270.0,108260.0,0.23665736]
[1750100242526,0.87961165,108270.0,108260.0,0.24589412]
[1750100243232,0.87961165,108270.0,108260.0,0.24589421]
[1750100244095,0.89808312,108270.0,108260.0,0.26436731]
[1750100244308,0.8917192,108270.0,108260.0,0.25513089]
[1750100244508,0.88248372,108270.0,108260.0,0.25513089]
[1750100245044,0.88248372,108270.0,108260.0,0.24589421]
[1750100245312,0.88248372,108270.0,108260.0,0.25513097]
[1750100248090,0.87324773,108270.0,108260.0,0.25513097]
[1750100248327,0.87324773,108270.0,108260.0,0.24589421]
[1750100249219,0.86401165,108270.0,108260.0,0.22742043]
[1750100249437,1.88664937,108270.0,108260.0,0.002]
[1750100249649,1.71906852,108270.0,108260.0,0.04212]
[1750100249861,1.33684249,108270.0,108260.0,0.04212]
[1750100250072,1.33680249,108270.0,108260.0,0.04212]
[1750100250290,1.18420249,108270.0,108260.0,0.23609736]
[1750100250500,1.17496641,108270.0,108260.0,0.18674043]
[1750100250711,1.32756641,108270.0,108260.0,0.23609745]
[1750100251141,1.32752641,108270.0,108260.0,0.23609745]
[1750100251357,1.32752641,108270.0,108260.0,0.05135702]
[1750100251786,0.808247,108270.0,108260.0,0.002]
[1750100251993,1.32752641,108270.0,108260.0,0.04212]
[1750100252200,0.98752641,108270.0,108260.0,0.04212]
[1750100252420,0.808247,108270.0,108260.0,0.04212]
[1750100252647,1.32752641,108270.0,108260.0,0.22686043]
[1750100252856,1.32752641,108270.0,108260.0,0.04212]
[1750100253062,1.32752641,108270.0,108260.0,0.22686043]
[1750100253271,1.32752641,108270.0,108260.0,0.23609736]
[1750100253974,1.32752641,108270.0,108260.0,0.22686043]
[1750100254187,1.32752641,108270.0,108260.0,0.23609745]
[1750100255215,1.32752641,108270.0,108260.0,0.002]
[1750100255458,1.32752641,108270.0,108260.0,0.04212]
[1750100258927,1.32697773,108270.0,108260.0,0.04212]
[1750100260390,0.808247,108270.0,108260.0,0.04212]
[1750100260608,1.32697773,108270.0,108260.0,0.04212]
[1750100262794,2.60364597,108270.0,108260.0,0.002]
[1750100263051,2.5284474,108270.0,108260.0,0.002]
[1750100263267,2.00971667,108270.0,108260.0,0.002]
[1750100263500,2.00771667,108270.0,108260.0,0.002]
[1750100263716,2.00767667,108270.0,108260.0,0.002]
[1750100263937,1.91852745,108270.0,108260.0,0.002]
[1750100264194,1.92352745,108270.0,108260.0,0.002]
[1750100265097,1.90736149,108270.0,108260.0,0.002]
[1750100265597,1.3513156,108270.0,108260.0,0.0343]
[1750100265804,1.3235626,108270.0,108260.0,0.0343]
[1750100266016,1.1713226,108270.0,108260.0,0.22827745]
[1750100266231,0.67094666,108270.0,108260.0,0.24675123]
[1750100266445,1.34211441,108270.0,108260.0,0.24675123]
[1750100266660,1.18055876,108270.0,108260.0,0.23651438]
[1750100266900,0.54636823,108270.0,108260.0,0.24575106]
[1750100267121,0.88972835,108270.0,108260.0,0.25498748]
[1750100267331,1.04680784,108270.0,108260.0,0.25498748]
[1750100267590,1.04404375,108270.0,108260.0,0.25498748]
[1750100268046,0.89576375,108270.0,108260.0,0.25498748]
[1750100268253,1.04804375,108270.0,108260.0,0.25498748]
[1750100268963,1.05204375,108270.0,108260.0,0.25498748]
[1750100270374,1.06123974,108270.0,108260.0,0.25498748]
[1750100270589,1.05200366,108270.0,108260.0,0.25498748]
[1750100270805,1.06123965,108270.0,108260.0,0.25498748]
[1750100271335,1.05200366,108270.0,108260.0,0.25498748]
[1750100272214,0.89976366,108270.0,108260.0,0.25498748]
[1750100272425,1.05192366,108270.0,108260.0,0.25498748]
[1750100272745,1.06115965,108270.0,108260.0,0.25498748]
[1750100272983,1.05192366,108270.0,108260.0,0.25498748]
[1750100273196,1.07039556,108270.0,108260.0,0.25498748]
[1750100273837,1.06115957,108270.0,108260.0,0.25498748]
[1750100274037,0.89976366,108270.0,108260.0,0.25498748]
[1750100274316,1.04260784,108270.0,108260.0,0.25498748]
[1750100274748,1.05184375,108270.0,108260.0,0.25498748]
[1750100274953,1.04260784,108270.0,108260.0,0.25498748]
[1750100275375,1.05184375,108270.0,108260.0,0.25498748]
[1750100275594,1.04260784,108270.0,108260.0,0.25498748]
[1750100276246,1.05184366,108270.0,108260.0,0.25498748]
[1750100276461,1.04260784,108270.0,108260.0,0.25498748]
[1750100276930,1.0333721,108270.0,108260.0,0.25498748]
[1750100277144,1.04260784,108270.0,108260.0,0.25498748]
[1750100278075,0.00840887,108270.0,108260.0,0.25498748]
[1750100278291,0.00840887,108270.0,108260.0,1.25744055]
[1750100278509,0.00136238,108270.0,108260.0,1.44960055]
[1750100278723,0.00136238,108270.0,108260.0,0.7385928]
[1750100278940,0.00136238,108270.0,108260.0,1.15570055]
[1750100279145,0.00136238,108270.0,108260.0,1.18344155]
[1750100279361,0.00136238,108270.0,108260.0,1.10997799]
[1750100279610,1.01734565,108280.0,108270.0,0.24443084]
[1750100279815,1.01734565,108280.0,108270.0,0.85952035]
[1750100280237,1.01734565,108280.0,108270.0,1.05128035]
[1750100280449,1.01734565,108280.0,108270.0,0.89928035]
[1750100280671,1.01734565,108280.0,108270.0,1.05136035]
[1750100281341,1.01734565,108280.0,108270.0,1.5732081]
[1750100281997,1.01734565,108280.0,108270.0,2.3632081]
[1750100282247,1.01734565,108280.0,108270.0,2.25937251]
[1750100282447,1.01734565,108280.0,108270.0,2.38457895]
[1750100282876,1.01734565,108280.0,108270.0,1.34688345]
[1750100283084,1.01734565,108280.0,108270.0,2.34265895]
[1750100283313,1.01734565,108280.0,108270.0,2.53457895]
[1750100283525,1.01734565,108280.0,108270.0,2.38457895]
[1750100284381,1.01734565,108280.0,108270.0,1.60927035]
[1750100284648,1.01734565,108280.0,108270.0,1.80115035]
[1750100285262,1.01734565,108280.0,108270.0,2.3199981]
[1750100285473,1.01734565,108280.0,108270.0,1.80115035]
[1750100285680,1.01734565,108280.0,108270.0,1.60927035]
[1750100285928,1.01734565,108280.0,108270.0,1.2823026]
[1750100286181,1.01734565,108280.0,108270.0,1.80111035]
[1750100288023,1.01734565,108280.0,108270.0,1.95111035]
[1750100288221,1.01734565,108280.0,108270.0,1.80111035]
[1750100288569,1.01734565,108280.0,108270.0,2.3476961]
[1750100294525,1.01734565,108280.0,108270.0,2.4976961]
[1750100295329,1.01734565,108280.0,108270.0,2.7915961]
[1750100296416,1.01734565,108280.0,108270.0,1.7539006]
[1750100296631,1.01734565,108280.0,108270.0,2.7915961]
[1750100301783,1.01734565,108280.0,108270.0,2.9867161]
[1750100303393,1.01734565,108280.0,108270.0,2.9865561]
[1750100305535,1.01734565,108280.0,108270.0,2.7948761]
[1750100305970,1.01734565,108280.0,108270.0,2.9865561]
[1750100307286,1.01734565,108280.0,108270.0,3.06001966]
[1750100308776,1.01734565,108280.0,108270.0,2.86833966]
[1750100309016,1.01734565,108280.0,108270.0,3.06001966]
[1750100312336,1.01734565,108280.0,108270.0,2.86833966]
[1750100312548,1.01734565,108280.0,108270.0,3.05997966]
[1750100314962,1.01734565,108280.0,108270.0,3.05857682]
[1750100317976,1.01734565,108280.0,108270.0,2.02228416]
[1750100318195,1.01734565,108280.0,108270.0,3.05857682]
[1750100318665,1.01734565,108280.0,108270.0,3.56780044]
[1750100318887,0.72344565,108280.0,108270.0,2.1051509]
[1750100319090,0.72344565,108280.0,108270.0,3.12307761]
[1750100319310,0.72344565,108280.0,108270.0,2.97119761]
[1750100319531,0.72344565,108280.0,108270.0,2.08478495]
[1750100319744,0.72344565,108280.0,108270.0,3.12107761]
[1750100319964,0.72344565,108280.0,108270.0,3.04761411]
[1750100320182,0.72344565,108280.0,108270.0,3.11807761]
[1750100320627,0.72344565,108280.0,108270.0,3.66122394]
[1750100320846,0.72344565,108280.0,108270.0,2.10678495]
[1750100321067,0.72344565,108280.0,108270.0,3.66322394]
[1750100321277,0.72344565,108280.0,108270.0,3.14507761]
[1750100321722,0.72344565,108280.0,108270.0,3.14007761]
[1750100322157,0.72344565,108280.0,108270.0,3.66122394]
[1750100322364,0.72344565,108280.0,108270.0,3.66422394]
[1750100324820,0.72344565,108280.0,108270.0,3.14607761]
[1750100325641,0.72344565,108280.0,108270.0,3.66422394]
[1750100326886,0.72344565,108280.0,108270.0,3.14607761]
[1750100327116,0.72344565,108280.0,108270.0,2.10978495]
[1750100327331,0.72344565,108280.0,108270.0,3.14607761]
[1750100329035,0.69761006,108280.0,108270.0,3.68258989]
[1750100329571,0.69761006,108280.0,108270.0,3.49098989]
[1750100329990,0.69761006,108280.0,108270.0,3.16444356]
[1750100330200,0.69761006,108280.0,108270.0,3.68258989]
[1750100331559,0.69769706,108280.0,108270.0,3.68258989]
[1750100334780,0.00318452,108290.0,108280.0,0.64995207]
[1750100334993,0.00318452,108290.0,108280.0,2.59453282]
[1750100335207,0.00318452,108290.0,108280.0,2.80625282]
[1750100336078,0.00318452,108290.0,108280.0,2.61453282]
[1750100336288,0.00318452,108290.0,108280.0,2.80725282]
[1750100336975,0.00318452,108290.0,108280.0,2.81125282]
[1750100337181,0.00318452,108290.0,108280.0,2.61953282]
[1750100337389,0.00318452,108290.0,108280.0,2.62430282]
[1750100337604,0.00318452,108290.0,108280.0,2.81598282]
[1750100338052,0.00318452,108290.0,108280.0,3.04022915]
[1750100338249,0.00318452,108290.0,108280.0,2.595478]
[1750100338463,0.00318452,108290.0,108280.0,2.52208282]
[1750100338683,0.00318452,108290.0,108280.0,2.33040282]
[1750100339111,0.00318452,108290.0,108280.0,2.52224282]
[1750100339528,0.00318452,108290.0,108280.0,2.33040282]
[1750100339739,0.00318452,108290.0,108280.0,2.52292282]
[1750100341521,0.00318452,108290.0,108280.0,2.61292282]
[1750100341724,0.00318452,108290.0,108280.0,2.62612282]
[1750100343414,0.00318452,108290.0,108280.0,3.14426915]
[1750100343656,0.0132,108300.0,108290.0,0.69071548]
[1750100343878,0.01367095,108300.0,108290.0,2.80760784]
[1750100344351,0.01367095,108300.0,108290.0,3.34075417]
[1750100344567,0.01,108320.0,108310.0,2.69243223]
[1750100344781,0.02508398,108330.0,108320.0,1.86221262]
[1750100345019,0.02508398,108330.0,108320.0,1.66651804]
[1750100345020,0.02513106,108330.0,108320.0,1.66651804]
[1750100345296,0.02513106,108330.0,108320.0,1.69423904]
[1750100345520,0.02513106,108330.0,108320.0,1.74379207]
[1750100345764,0.1,108340.0,108330.0,2.10752806]
[1750100345986,0.1,108340.0,108330.0,2.35832982]
[1750100346207,0.1,108340.0,108330.0,2.44856982]
[1750100346424,0.1,108340.0,108330.0,2.39860982]
[1750100346644,0.09991385,108340.0,108330.0,2.39860982]
[1750100347105,0.09991385,108340.0,108330.0,2.44860982]
[1750100347332,0.09991385,108340.0,108330.0,2.40160982]
[1750100347571,0.09991385,108340.0,108330.0,2.40627982]
[1750100348022,0.09991385,108340.0,108330.0,2.21143982]
[1750100348257,0.09991385,108340.0,108330.0,1.16149579]
[1750100348488,0.10491385,108340.0,108330.0,1.83359323]
[1750100348709,0.10491385,108340.0,108330.0,1.63875323]
[1750100348930,0.10491385,108340.0,108330.0,1.13749579]
[1750100349158,0.10491385,108340.0,108330.0,1.84987323]
[1750100349594,0.09991385,108340.0,108330.0,1.65495323]
[1750100350244,0.09991385,108340.0,108330.0,1.84983323]
[1750100350946,0.09991385,108340.0,108330.0,1.65495323]
[1750100351163,0.09991385,108340.0,108330.0,1.84979323]
[1750100353021,0.09991385,108340.0,108330.0,1.87796702]
[1750100353229,0.09991385,108340.0,108330.0,2.39542446]
[1750100353449,0.09991385,108340.0,108330.0,1.87792702]
[1750100354422,0.09991385,108340.0,108330.0,1.36046958]
[1750100354633,0.09991385,108340.0,108330.0,1.87792702]
[1750100354848,0.09991385,108340.0,108330.0,1.14744873]
[1750100355049,0.10491385,108340.0,108330.0,1.85966617]
[1750100355472,0.10491385,108340.0,108330.0,1.81962617]
[1750100355675,0.10491385,108340.0,108330.0,1.85982617]
[1750100355930,0.10491385,108340.0,108330.0,1.34236873]
[1750100356129,0.10491385,108340.0,108330.0,1.85978617]
[1750100356790,0.10491385,108340.0,108330.0,2.37724361]
[1750100357522,0.10491385,108340.0,108330.0,2.67114361]
[1750100357729,0.10491385,108340.0,108330.0,2.70304361]
[1750100360023,0.10491385,108340.0,108330.0,2.68684361]
[1750100361248,0.10491385,108340.0,108330.0,1.65192873]
[1750100361468,0.10491385,108340.0,108330.0,2.68684361]
[1750100361907,0.10491385,108340.0,108330.0,2.67114361]
[1750100363082,0.10491385,108340.0,108330.0,2.70194361]
[1750100363758,0.10491385,108340.0,108330.0,2.67114361]
[1750100364205,0.10491385,108340.0,108330.0,1.63622873]
[1750100364421,0.10491385,108340.0,108330.0,2.15364617]
[1750100365488,0.10491385,108340.0,108330.0,2.15356617]
[1750100365692,0.10491385,108340.0,108330.0,1.63610873]
[1750100365914,0.10491385,108340.0,108330.0,2.15356617]
[1750100366582,0.10491385,108340.0,108330.0,2.70192361]
[1750100368082,0.10491385,108340.0,108330.0,2.50716361]
[1750100368295,0.10491385,108340.0,108330.0,2.16860617]
[1750100368655,0.10491385,108340.0,108330.0,1.95880617]
[1750100368817,0.13601385,108340.0,108330.0,0.33972873]
[1750100369057,0.13601385,108340.0,108330.0,0.91492873]
[1750100369321,0.13601385,108340.0,108330.0,1.04111494]
[1750100370744,0.13601385,108340.0,108330.0,1.55857238]
[1750100370954,0.11991385,108340.0,108330.0,1.55857238]
[1750100372017,0.10491385,108340.0,108330.0,1.55857238]
[1750100372227,0.10491385,108340.0,108330.0,1.36401238]
[1750100372440,0.12121385,108340.0,108330.0,1.5873548]
[1750100373472,0.13651385,108340.0,108330.0,1.06989736]
[1750100373677,0.13651385,108340.0,108330.0,1.5873548]
[1750100375858,0.13651385,108340.0,108330.0,1.5872748]
[1750100377515,0.12121385,108340.0,108330.0,1.5872748]
[1750100377737,0.10491385,108340.0,108330.0,1.5872748]
[1750100379677,0.12011385,108340.0,108330.0,1.5870748]
[1750100379887,0.13531385,108340.0,108330.0,1.5870748]
[1750100382290,0.12011385,108340.0,108330.0,1.5868748]
[1750100385388,0.10491385,108340.0,108330.0,1.5868748]
[1750100388165,0.09039329,108340.0,108330.0,1.5868748]
[1750100389471,0.09039329,108340.0,108330.0,1.06941736]
[1750100389678,0.09039329,108340.0,108330.0,1.5868748]
[1750100392355,0.09039329,108340.0,108330.0,1.3918348]
[1750100392585,0.09039329,108340.0,108330.0,1.5865548]
[1750100393731,0.09039329,108340.0,108330.0,1.3918348]
[1750100393950,0.09039329,108340.0,108330.0,1.5866748]
[1750100395103,0.09039329,108340.0,108330.0,1.58690461]
[1750100396220,0.08539329,108340.0,108330.0,1.42466461]
[1750100396430,0.09001329,108340.0,108330.0,1.61934461]
[1750100396861,0.09001329,108340.0,108330.0,1.69245238]
[1750100398448,0.09001329,108340.0,108330.0,1.69235181]
[1750100399320,0.08539329,108340.0,108330.0,1.69235181]
[1750100399541,0.09012329,108340.0,108330.0,1.69235181]
[1750100400189,0.09012329,108340.0,108330.0,1.17466456]
[1750100400411,0.09012329,108340.0,108330.0,1.69235181]
[1750100400973,0.08539329,108340.0,108330.0,1.69235181]
[1750100401194,0.08539329,108340.0,108330.0,2.21003906]
[1750100401411,0.08539329,108340.0,108330.0,2.41003906]
[1750100401628,0.08539329,108340.0,108330.0,2.36224291]
[1750100401846,0.08539329,108340.0,108330.0,2.60257671]
[1750100402092,0.08539329,108340.0,108330.0,1.76927276]
[1750100402342,0.08539329,108340.0,108330.0,2.80464726]
[1750100402780,0.08539329,108340.0,108330.0,2.85464726]
[1750100403008,0.08539329,108340.0,108330.0,3.46416396]
[1750100403443,0.08539329,108340.0,108330.0,2.94647671]
[1750100404181,0.08539329,108340.0,108330.0,1.91110221]
[1750100404396,0.08539329,108340.0,108330.0,2.94647671]
[1750100404615,0.08539329,108340.0,108330.0,2.75255671]
[1750100405047,0.08539329,108340.0,108330.0,2.94652337]
[1750100406439,0.08539329,108340.0,108330.0,2.85469392]
[1750100406893,0.08539329,108340.0,108330.0,2.85477392]
[1750100408436,0.08539329,108340.0,108330.0,2.85469392]
[1750100408645,0.08539329,108340.0,108330.0,3.00469392]
[1750100408889,0.08447023,108340.0,108330.0,2.85469392]
[1750100410479,0.08447023,108340.0,108330.0,2.87469392]
[1750100411161,0.08447023,108340.0,108330.0,1.83959276]
[1750100411377,0.08447023,108340.0,108330.0,2.87469392]
[1750100411597,0.07365191,108340.0,108330.0,2.87469392]
[1750100411813,0.07365191,108340.0,108330.0,2.68045392]
[1750100412026,0.07365191,108340.0,108330.0,2.87485392]
[1750100412899,0.07365191,108340.0,108330.0,2.96668337]
[1750100413107,0.07365191,108340.0,108330.0,2.77228337]
[1750100413533,0.07365191,108340.0,108330.0,3.11668337]
[1750100414393,0.07365191,108340.0,108330.0,2.96668337]
[1750100416104,0.07365191,108340.0,108330.0,1.93158221]
[1750100416334,0.07365191,108340.0,108330.0,2.96668337]
[1750100418680,0.07365191,108340.0,108330.0,3.11668337]
[1750100418892,0.07365191,108340.0,108330.0,2.96668337]
[1750100419097,0.07365191,108340.0,108330.0,1.93158221]
[1750100419305,0.07365191,108340.0,108330.0,2.96668337]
[1750100419519,0.07365191,108340.0,108330.0,2.77228337]
[1750100419727,0.07365191,108340.0,108330.0,2.96652337]
[1750100420228,0.07365191,108340.0,108330.0,2.70312252]
[1750100420472,0.07365191,108340.0,108330.0,2.89728252]
[1750100420675,0.07365191,108340.0,108330.0,2.91182337]
[1750100420882,0.07365191,108340.0,108330.0,1.78489276]
[1750100421100,0.07365191,108340.0,108330.0,2.62583392]
[1750100421313,0.07365191,108340.0,108330.0,2.82003392]
[1750100422212,0.07365191,108340.0,108330.0,2.62583392]
[1750100422423,0.07365191,108340.0,108330.0,2.82457392]
[1750100422840,0.07365191,108340.0,108330.0,2.91640337]
[1750100423052,0.07365191,108340.0,108330.0,2.91178337]
[1750100423561,0.07365191,108340.0,108330.0,3.06178337]
[1750100424855,0.07365191,108340.0,108330.0,3.11640337]
[1750100425305,0.07365191,108340.0,108330.0,2.92228337]